[Event "*** Titled Tuesday Blitz"]
[Site "Chess.com"]
[Date "2021.04.06"]
[Round "6"]
[White "GrigoriyM2001"]
[Black "RobertoJBM"]
[Result "1/2-1/2"]
[WhiteElo "2534"]
[BlackElo "2695"]
[TimeControl "180+1"]
[EndTime "11:08:55 PDT"]
[Termination "Game drawn by repetition"]

1. d4 {[%clk 0:03:00]} 1... d5 {[%clk 0:02:58.8]} 2. c4 {[%clk 0:03:00.5]} 2...
c6 {[%clk 0:02:57]} 3. Nf3 {[%clk 0:03:00.7]} 3... Nf6 {[%clk 0:02:56.4]} 4. e3
{[%clk 0:03:01.3]} 4... Bf5 {[%clk 0:02:55.3]} 5. Nc3 {[%clk 0:03:01.5]} 5... e6
{[%clk 0:02:54.8]} 6. Qb3 {[%clk 0:03:02.1]} 6... Qb6 {[%clk 0:02:52.8]} 7. Nh4
{[%clk 0:03:01.3]} 7... Bg6 {[%clk 0:02:48.4]} 8. Nxg6 {[%clk 0:02:55.4]} 8...
hxg6 {[%clk 0:02:49.3]} 9. g3 {[%clk 0:02:51.9]} 9... Nbd7 {[%clk 0:02:47.8]}
10. Bg2 {[%clk 0:02:51]} 10... g5 {[%clk 0:02:45.8]} 11. O-O {[%clk 0:02:47.8]}
11... Be7 {[%clk 0:02:41.7]} 12. Rd1 {[%clk 0:02:46.3]} 12... Qxb3 {[%clk
0:02:33.1]} 13. axb3 {[%clk 0:02:45.8]} 13... a6 {[%clk 0:02:34]} 14. e4 {[%clk
0:02:43]} 14... Nxe4 {[%clk 0:02:33.9]} 15. Nxe4 {[%clk 0:02:43.9]} 15... dxe4
{[%clk 0:02:34.8]} 16. Bxe4 {[%clk 0:02:43.8]} 16... O-O-O {[%clk 0:02:27.4]}
17. Be3 {[%clk 0:02:34.1]} 17... Kb8 {[%clk 0:02:02.8]} 18. Bg2 {[%clk
0:02:26.7]} 18... Bf6 {[%clk 0:01:56.3]} 19. h3 {[%clk 0:02:19.1]} 19... Rhe8
{[%clk 0:01:48.7]} 20. Ra5 {[%clk 0:02:15.3]} 20... e5 {[%clk 0:01:43.3]} 21. d5
{[%clk 0:02:15.2]} 21... Nf8 {[%clk 0:01:34.4]} 22. Rd2 {[%clk 0:01:57.3]} 22...
cxd5 {[%clk 0:01:29.8]} 23. Rdxd5 {[%clk 0:01:43.8]} 23... Ne6 {[%clk
0:01:24.9]} 24. b4 {[%clk 0:01:39.6]} 24... Nd4 {[%clk 0:01:19.7]} 25. Rxd8+
{[%clk 0:00:42.6]} 25... Rxd8 {[%clk 0:01:13.8]} 26. Bd5 {[%clk 0:00:43]} 26...
Rd7 {[%clk 0:01:13.9]} 27. Kg2 {[%clk 0:00:39]} 27... Bd8 {[%clk 0:01:09.7]} 28.
Ra1 {[%clk 0:00:32.8]} 28... Nc2 {[%clk 0:00:59.1]} 29. Ra4 {[%clk 0:00:33.3]}
29... Nd4 {[%clk 0:00:48.4]} 30. g4 {[%clk 0:00:14.9]} 30... f6 {[%clk
0:00:46.2]} 31. Be4 {[%clk 0:00:14.2]} 31... Be7 {[%clk 0:00:42.8]} 32. c5
{[%clk 0:00:13.7]} 32... Kc7 {[%clk 0:00:34.4]} 33. Ra1 {[%clk 0:00:09.9]} 33...
Rd8 {[%clk 0:00:22.1]} 34. Rd1 {[%clk 0:00:09.8]} 34... Nc6 {[%clk 0:00:18]} 35.
Rxd8 {[%clk 0:00:07.7]} 35... Bxd8 {[%clk 0:00:16.9]} 36. Bd2 {[%clk 0:00:08.2]}
36... Be7 {[%clk 0:00:16.7]} 37. Bc3 {[%clk 0:00:08.6]} 37... Na7 {[%clk
0:00:14]} 38. Kf3 {[%clk 0:00:08.7]} 38... Nc6 {[%clk 0:00:10.7]} 39. Bd3 {[%clk
0:00:09.3]} 39... Kd7 {[%clk 0:00:10.8]} 40. Ke4 {[%clk 0:00:09.8]} 40... Bd8
{[%clk 0:00:09.1]} 41. Bc4 {[%clk 0:00:10.1]} 41... Bc7 {[%clk 0:00:07.4]} 42.
Bd5 {[%clk 0:00:08.3]} 42... Bd8 {[%clk 0:00:05.9]} 43. Bxc6+ {[%clk 0:00:08.2]}
43... bxc6 {[%clk 0:00:04.9]} 44. Kf5 {[%clk 0:00:08.4]} 44... Ke7 {[%clk
0:00:05.4]} 45. Kg6 {[%clk 0:00:07.3]} 45... Kf8 {[%clk 0:00:05.9]} 46. f3
{[%clk 0:00:07.4]} 46... Be7 {[%clk 0:00:06]} 47. Bd2 {[%clk 0:00:07.1]} 47...
Kg8 {[%clk 0:00:05.8]} 48. Bc3 {[%clk 0:00:07.3]} 48... Kf8 {[%clk 0:00:06.3]}
49. Bd2 {[%clk 0:00:07.3]} 49... Kg8 {[%clk 0:00:06.7]} 50. Bc3 {[%clk
0:00:07.3]} 50... Bd8 {[%clk 0:00:07.2]} 51. Bd2 {[%clk 0:00:06.6]} 51... Be7
{[%clk 0:00:07.7]} 1/2-1/2

[Event "*** Titled Tuesday Blitz"]
[Site "Chess.com"]
[Date "2021.04.06"]
[Round "6"]
[White "MVM2008"]
[Black "Rytenko_V"]
[Result "0-1"]
[WhiteElo "2132"]
[BlackElo "2379"]
[TimeControl "180+1"]
[EndTime "11:08:56 PDT"]
[Termination "Rytenko_V won on time"]

1. e4 {[%clk 0:03:00.9]} 1... e6 {[%clk 0:02:58.6]} 2. d4 {[%clk 0:02:59.8]}
2... d5 {[%clk 0:02:59.5]} 3. exd5 {[%clk 0:02:59.3]} 3... exd5 {[%clk
0:03:00.4]} 4. Nf3 {[%clk 0:02:58.2]} 4... Nf6 {[%clk 0:03:00.9]} 5. Bd3 {[%clk
0:02:57.2]} 5... Bd6 {[%clk 0:03:01.5]} 6. O-O {[%clk 0:02:56.8]} 6... O-O
{[%clk 0:03:02]} 7. c4 {[%clk 0:02:56.2]} 7... c6 {[%clk 0:03:01.1]} 8. c5
{[%clk 0:02:56.2]} 8... Bc7 {[%clk 0:03:01.4]} 9. h3 {[%clk 0:02:54.8]} 9... h6
{[%clk 0:02:59.2]} 10. Nc3 {[%clk 0:02:53.9]} 10... Re8 {[%clk 0:02:55.7]} 11.
b4 {[%clk 0:02:43.4]} 11... b6 {[%clk 0:02:50.7]} 12. a4 {[%clk 0:02:39.5]}
12... Be6 {[%clk 0:02:26.7]} 13. Re1 {[%clk 0:02:24]} 13... Qd7 {[%clk
0:02:25.7]} 14. Bf1 {[%clk 0:02:12.2]} 14... Bf5 {[%clk 0:02:20]} 15. Ne5 {[%clk
0:01:53.5]} 15... Bxe5 {[%clk 0:02:03.2]} 16. dxe5 {[%clk 0:01:54.4]} 16... Ne4
{[%clk 0:01:59.5]} 17. Nxe4 {[%clk 0:01:44.1]} 17... Bxe4 {[%clk 0:02:00.4]} 18.
f3 {[%clk 0:01:32.3]} 18... Bg6 {[%clk 0:01:50.7]} 19. Qd4 {[%clk 0:01:08.7]}
19... Qc7 {[%clk 0:01:28.9]} 20. Bb2 {[%clk 0:01:01.2]} 20... Re6 {[%clk
0:01:05.8]} 21. f4 {[%clk 0:00:43.5]} 21... Nd7 {[%clk 0:01:04.4]} 22. g4 {[%clk
0:00:33.2]} 22... Be4 {[%clk 0:01:00.3]} 23. Rxe4 {[%clk 0:00:26.8]} 23... dxe4
{[%clk 0:00:57.4]} 24. Bc4 {[%clk 0:00:16.6]} 24... Re7 {[%clk 0:00:47.4]} 25.
Qd6 {[%clk 0:00:06.7]} 25... Nf8 {[%clk 0:00:35]} 26. Rd1 {[%clk 0:00:03.9]}
26... bxc5 {[%clk 0:00:29.7]} 27. bxc5 {[%clk 0:00:04]} 27... Rb8 {[%clk
0:00:25.1]} 28. Bc3 {[%clk 0:00:04.1]} 28... Rbe8 {[%clk 0:00:17.2]} 29. f5
{[%clk 0:00:02.6]} 29... Rd7 {[%clk 0:00:05.8]} 30. f6 {[%clk 0:00:01.9]} 30...
Rxd6 {[%clk 0:00:05.6]} 31. cxd6 {[%clk 0:00:02.4]} 31... Qd7 {[%clk 0:00:05.8]}
32. fxg7 {[%clk 0:00:02.3]} 32... Ne6 {[%clk 0:00:06.2]} 33. Bxe6 {[%clk
0:00:02.1]} 33... Qxe6 {[%clk 0:00:05.9]} 34. d7 {[%clk 0:00:02]} 34... Rd8
{[%clk 0:00:05.5]} 35. Rd6 {[%clk 0:00:02.6]} 35... Qxd6 {[%clk 0:00:03.5]} 36.
exd6 {[%clk 0:00:02.7]} 36... Rxd7 {[%clk 0:00:04.3]} 37. Be5 {[%clk 0:00:03.3]}
37... f6 {[%clk 0:00:04.7]} 38. Bxf6 {[%clk 0:00:03.4]} 38... Rxd6 {[%clk
0:00:05.3]} 39. Be5 {[%clk 0:00:03.2]} 39... Rd2 {[%clk 0:00:05]} 40. h4 {[%clk
0:00:02.1]} 40... Ra2 {[%clk 0:00:05.6]} 41. h5 {[%clk 0:00:02.2]} 41... c5
{[%clk 0:00:06]} 42. g5 {[%clk 0:00:02.5]} 42... hxg5 {[%clk 0:00:05.7]} 43. h6
{[%clk 0:00:02.8]} 43... c4 {[%clk 0:00:06]} 44. Kf1 {[%clk 0:00:02.5]} 44...
Rxa4 {[%clk 0:00:04.6]} 45. Kg2 {[%clk 0:00:02.7]} 45... Ra5 {[%clk 0:00:05]}
46. Bd4 {[%clk 0:00:02.2]} 46... Rd5 {[%clk 0:00:05.4]} 47. Bf6 {[%clk
0:00:01.9]} 47... e3 {[%clk 0:00:05.2]} 48. Kf3 {[%clk 0:00:01.8]} 48... Rd6
{[%clk 0:00:05.4]} 49. Bxg5 {[%clk 0:00:01.1]} 49... Re6 {[%clk 0:00:05.8]} 0-1

[Event "*** Titled Tuesday Blitz"]
[Site "Chess.com"]
[Date "2021.04.06"]
[Round "6"]
[White "Schack-Hugo"]
[Black "ffbp3q"]
[Result "1/2-1/2"]
[WhiteElo "2201"]
[BlackElo "2368"]
[TimeControl "180+1"]
[EndTime "11:08:59 PDT"]
[Termination "Game drawn by repetition"]

1. e4 {[%clk 0:03:00.9]} 1... c5 {[%clk 0:02:59.3]} 2. Nf3 {[%clk 0:03:00.7]}
2... e6 {[%clk 0:02:59.2]} 3. d4 {[%clk 0:03:00.9]} 3... cxd4 {[%clk 0:02:59.4]}
4. Nxd4 {[%clk 0:03:01.8]} 4... Nc6 {[%clk 0:02:59.6]} 5. Nc3 {[%clk 0:02:59.6]}
5... Qc7 {[%clk 0:02:59.2]} 6. Be3 {[%clk 0:02:59.5]} 6... a6 {[%clk 0:02:58.1]}
7. Bd3 {[%clk 0:02:58.7]} 7... Nf6 {[%clk 0:02:56.8]} 8. f4 {[%clk 0:02:57.8]}
8... d6 {[%clk 0:02:56.3]} 9. Qf3 {[%clk 0:02:56.7]} 9... Bd7 {[%clk 0:02:49.9]}
10. g4 {[%clk 0:02:53]} 10... Nxd4 {[%clk 0:02:48.1]} 11. Bxd4 {[%clk
0:02:52.7]} 11... Bc6 {[%clk 0:02:48.4]} 12. g5 {[%clk 0:02:47.7]} 12... Nd7
{[%clk 0:02:48.1]} 13. O-O-O {[%clk 0:02:41.6]} 13... O-O-O {[%clk 0:02:47.3]}
14. Rhe1 {[%clk 0:01:59]} 14... Kb8 {[%clk 0:02:45.5]} 15. f5 {[%clk 0:01:55.4]}
15... Nc5 {[%clk 0:02:31.8]} 16. f6 {[%clk 0:01:42.2]} 16... g6 {[%clk
0:02:28.1]} 17. Qg3 {[%clk 0:01:28]} 17... h6 {[%clk 0:02:02.8]} 18. h4 {[%clk
0:01:25.7]} 18... hxg5 {[%clk 0:02:01.8]} 19. hxg5 {[%clk 0:01:26.6]} 19... b5
{[%clk 0:01:25.3]} 20. Bf1 {[%clk 0:00:58.3]} 20... Nd7 {[%clk 0:01:04.9]} 21.
a3 {[%clk 0:00:38.7]} 21... Ka8 {[%clk 0:00:57.1]} 22. Rd2 {[%clk 0:00:32.4]}
22... Rc8 {[%clk 0:00:49.9]} 23. Red1 {[%clk 0:00:32.1]} 23... Nb6 {[%clk
0:00:40.8]} 24. Bxb6 {[%clk 0:00:31.4]} 24... Qxb6 {[%clk 0:00:40.5]} 25. Qf2
{[%clk 0:00:22.7]} 25... Qxf2 {[%clk 0:00:39.3]} 26. Rxf2 {[%clk 0:00:23.6]}
26... Rh5 {[%clk 0:00:37.2]} 27. Rg2 {[%clk 0:00:23.4]} 27... Rh4 {[%clk
0:00:33.2]} 28. Be2 {[%clk 0:00:18.6]} 28... Ka7 {[%clk 0:00:27.1]} 29. Rg4
{[%clk 0:00:17.9]} 29... Rh2 {[%clk 0:00:20.1]} 30. Bf3 {[%clk 0:00:17.5]} 30...
Kb6 {[%clk 0:00:18]} 31. Rh1 {[%clk 0:00:16.9]} 31... Rxh1+ {[%clk 0:00:17.5]}
32. Bxh1 {[%clk 0:00:17.8]} 32... Rd8 {[%clk 0:00:17.7]} 33. Rh4 {[%clk
0:00:17.5]} 33... d5 {[%clk 0:00:17]} 34. exd5 {[%clk 0:00:17.1]} 34... exd5
{[%clk 0:00:15.9]} 35. Rh8 {[%clk 0:00:14.9]} 35... Kc7 {[%clk 0:00:15.4]} 36.
Nxd5+ {[%clk 0:00:11.8]} 36... Bxd5 {[%clk 0:00:14.6]} 37. Bxd5 {[%clk
0:00:11.8]} 37... Rxd5 {[%clk 0:00:12.9]} 38. Rxf8 {[%clk 0:00:11.9]} 38... Rxg5
{[%clk 0:00:13.1]} 39. Rxf7+ {[%clk 0:00:12.2]} 39... Kb6 {[%clk 0:00:13.1]} 40.
Re7 {[%clk 0:00:10.3]} 40... Rf5 {[%clk 0:00:13]} 41. f7 {[%clk 0:00:10.7]}
41... g5 {[%clk 0:00:12.2]} 42. Kd2 {[%clk 0:00:11.1]} 42... g4 {[%clk
0:00:11.6]} 43. Re6+ {[%clk 0:00:04.4]} 43... Kc5 {[%clk 0:00:10.8]} 44. b4+
{[%clk 0:00:03.9]} 44... Kd5 {[%clk 0:00:10.2]} 45. Rxa6 {[%clk 0:00:03.4]}
45... Rxf7 {[%clk 0:00:08.6]} 46. Rg6 {[%clk 0:00:03.2]} 46... Rf4 {[%clk
0:00:08.5]} 47. Kd3 {[%clk 0:00:02.1]} 47... Rf3+ {[%clk 0:00:07]} 48. Kd2
{[%clk 0:00:02.5]} 48... Rf4 {[%clk 0:00:06.4]} 49. Rg5+ {[%clk 0:00:03.4]}
49... Kc6 {[%clk 0:00:05.4]} 50. Rc5+ {[%clk 0:00:03.4]} 50... Kb6 {[%clk
0:00:05.5]} 51. Rg5 {[%clk 0:00:04.3]} 51... Kc6 {[%clk 0:00:04.6]} 52. Rg6+
{[%clk 0:00:05.2]} 52... Kd5 {[%clk 0:00:04.1]} 1/2-1/2

[Event "*** Titled Tuesday Blitz"]
[Site "Chess.com"]
[Date "2021.04.06"]
[Round "6"]
[White "zajka-molotok"]
[Black "Borsuk_Konstantin"]
[Result "0-1"]
[WhiteElo "2520"]
[BlackElo "2676"]
[TimeControl "180+1"]
[EndTime "11:09:01 PDT"]
[Termination "Borsuk_Konstantin won by resignation"]

1. e4 {[%clk 0:03:00.9]} 1... e6 {[%clk 0:02:59.6]} 2. d4 {[%clk 0:02:59.7]}
2... d5 {[%clk 0:03:00.2]} 3. e5 {[%clk 0:03:00.3]} 3... c5 {[%clk 0:03:00]} 4.
c3 {[%clk 0:03:00.7]} 4... Nc6 {[%clk 0:03:00.9]} 5. Nf3 {[%clk 0:03:00.8]} 5...
Qb6 {[%clk 0:03:01.5]} 6. a3 {[%clk 0:03:00]} 6... c4 {[%clk 0:03:01.3]} 7. Nbd2
{[%clk 0:02:59.4]} 7... Na5 {[%clk 0:03:01.9]} 8. Be2 {[%clk 0:02:59]} 8... Bd7
{[%clk 0:03:01.5]} 9. O-O {[%clk 0:02:58.9]} 9... Ne7 {[%clk 0:03:01.1]} 10. Rb1
{[%clk 0:02:58]} 10... h6 {[%clk 0:02:59]} 11. Re1 {[%clk 0:02:56.3]} 11...
O-O-O {[%clk 0:02:57.3]} 12. Nf1 {[%clk 0:02:52.1]} 12... Nb3 {[%clk 0:02:55.2]}
13. N3d2 {[%clk 0:02:45.8]} 13... Nxc1 {[%clk 0:02:51.2]} 14. Qxc1 {[%clk
0:02:44]} 14... Ba4 {[%clk 0:02:51]} 15. Ng3 {[%clk 0:02:39.3]} 15... Nc6 {[%clk
0:02:47.8]} 16. f4 {[%clk 0:02:37.8]} 16... g6 {[%clk 0:02:44.5]} 17. Ndf1
{[%clk 0:02:29.3]} 17... Be7 {[%clk 0:02:42.8]} 18. Ne3 {[%clk 0:02:28.2]} 18...
Na5 {[%clk 0:02:35.4]} 19. Bd1 {[%clk 0:02:27.7]} 19... Bxd1 {[%clk 0:02:25.7]}
20. Qxd1 {[%clk 0:02:25.2]} 20... Kb8 {[%clk 0:02:24.4]} 21. Qf3 {[%clk
0:02:12.1]} 21... Nb3 {[%clk 0:02:23.4]} 22. Re2 {[%clk 0:02:08.7]} 22... Na5
{[%clk 0:02:19.8]} 23. Rf1 {[%clk 0:02:08]} 23... Rdg8 {[%clk 0:02:15.4]} 24.
Ref2 {[%clk 0:02:01.3]} 24... Qd8 {[%clk 0:02:14.2]} 25. Ne2 {[%clk 0:01:59.5]}
25... Nc6 {[%clk 0:02:09.5]} 26. h3 {[%clk 0:01:56.2]} 26... h5 {[%clk
0:02:00.9]} 27. g4 {[%clk 0:01:48.3]} 27... a6 {[%clk 0:01:55.2]} 28. Rh2 {[%clk
0:01:45.3]} 28... Ka7 {[%clk 0:01:54.1]} 29. Rff2 {[%clk 0:01:43.7]} 29... Qb6
{[%clk 0:01:51.2]} 30. Ng3 {[%clk 0:01:40.7]} 30... Bh4 {[%clk 0:01:48.8]} 31.
Rfg2 {[%clk 0:01:37.5]} 31... Bxg3 {[%clk 0:01:45.3]} 32. Qxg3 {[%clk 0:01:36]}
32... Qb3 {[%clk 0:01:40.8]} 33. Qf3 {[%clk 0:01:33.9]} 33... Qa2 {[%clk
0:01:36.3]} 34. Qd1 {[%clk 0:01:24.4]} 34... Ne7 {[%clk 0:01:33.1]} 35. Qc2
{[%clk 0:01:21.4]} 35... Qa1+ {[%clk 0:01:29.4]} 36. Kf2 {[%clk 0:01:20.6]}
36... Qa2 {[%clk 0:01:23.1]} 37. f5 {[%clk 0:00:52.9]} 37... hxg4 {[%clk
0:01:18]} 38. hxg4 {[%clk 0:00:53.8]} 38... Rxh2 {[%clk 0:01:05.3]} 39. Rxh2
{[%clk 0:00:54.7]} 39... gxf5 {[%clk 0:01:05.5]} 40. gxf5 {[%clk 0:00:53.8]}
40... Qa1 {[%clk 0:01:04.6]} 41. Rg2 {[%clk 0:00:47.5]} 41... Rxg2+ {[%clk
0:00:55.9]} 42. Kxg2 {[%clk 0:00:48.4]} 42... Qe1 {[%clk 0:00:53.7]} 43. Qf2
{[%clk 0:00:39]} 43... Qc1 {[%clk 0:00:47]} 44. fxe6 {[%clk 0:00:35.6]} 44...
fxe6 {[%clk 0:00:46.7]} 45. Qe2 {[%clk 0:00:13.8]} 45... Ng6 {[%clk 0:00:45.6]}
46. Qf2 {[%clk 0:00:14.2]} 46... Qb1 {[%clk 0:00:39.5]} 47. Ng4 {[%clk
0:00:13.4]} 47... Qe4+ {[%clk 0:00:38.8]} 48. Kg3 {[%clk 0:00:13.3]} 48... Qd3+
{[%clk 0:00:34]} 49. Qf3 {[%clk 0:00:13.2]} 49... Qb1 {[%clk 0:00:33.8]} 50. Qe2
{[%clk 0:00:11.6]} 50... Qc1 {[%clk 0:00:29.5]} 51. Qf2 {[%clk 0:00:09.8]} 51...
a5 {[%clk 0:00:27.4]} 52. Nf6 {[%clk 0:00:08.5]} 52... Qg5+ {[%clk 0:00:24.9]}
53. Kh2 {[%clk 0:00:07.9]} 53... Nf4 {[%clk 0:00:21.6]} 54. Qg3 {[%clk
0:00:04.7]} 54... Qh6+ {[%clk 0:00:20.1]} 55. Kg1 {[%clk 0:00:01.6]} 55... Ne2+
{[%clk 0:00:20.2]} 56. Kf2 {[%clk 0:00:01.6]} 56... Nxg3 {[%clk 0:00:20.3]} 57.
Kxg3 {[%clk 0:00:02.5]} 57... Qg5+ {[%clk 0:00:19.4]} 0-1

[Event "*** Titled Tuesday Blitz"]
[Site "Chess.com"]
[Date "2021.04.06"]
[Round "6"]
[White "davigator"]
[Black "Vandros57"]
[Result "1-0"]
[WhiteElo "2376"]
[BlackElo "2211"]
[TimeControl "180+1"]
[EndTime "11:09:01 PDT"]
[Termination "davigator won on time"]

1. e4 {[%clk 0:03:00.9]} 1... c6 {[%clk 0:02:58.5]} 2. d4 {[%clk 0:02:59.7]}
2... d5 {[%clk 0:02:58]} 3. e5 {[%clk 0:02:59.5]} 3... h5 {[%clk 0:02:56.1]} 4.
c4 {[%clk 0:02:52]} 4... Bf5 {[%clk 0:02:34.2]} 5. Nc3 {[%clk 0:02:50.8]} 5...
e6 {[%clk 0:02:33]} 6. Be2 {[%clk 0:02:46.7]} 6... Bg6 {[%clk 0:02:28.3]} 7. Nh3
{[%clk 0:02:44.3]} 7... dxc4 {[%clk 0:02:15.8]} 8. Bxc4 {[%clk 0:02:41.1]} 8...
Nd7 {[%clk 0:02:11.1]} 9. Nf4 {[%clk 0:02:39.4]} 9... Bf5 {[%clk 0:01:57.9]} 10.
Nxh5 {[%clk 0:02:33.1]} 10... Nb6 {[%clk 0:01:56.8]} 11. Be2 {[%clk 0:02:31.5]}
11... Qd7 {[%clk 0:01:47.1]} 12. Be3 {[%clk 0:02:27.8]} 12... O-O-O {[%clk
0:01:46.1]} 13. Qd2 {[%clk 0:02:20.1]} 13... g6 {[%clk 0:01:26.5]} 14. Ng3
{[%clk 0:02:16.8]} 14... Bb4 {[%clk 0:01:19.3]} 15. a3 {[%clk 0:02:13]} 15...
Bxc3 {[%clk 0:01:15.6]} 16. bxc3 {[%clk 0:02:13.1]} 16... Ne7 {[%clk 0:01:11.4]}
17. c4 {[%clk 0:02:04.2]} 17... c5 {[%clk 0:01:08.6]} 18. d5 {[%clk 0:01:26.2]}
18... exd5 {[%clk 0:01:06.4]} 19. Bxc5 {[%clk 0:01:24.8]} 19... dxc4 {[%clk
0:00:59.7]} 20. Qa5 {[%clk 0:01:15.5]} 20... Nc6 {[%clk 0:00:43.9]} 21. Qc3
{[%clk 0:01:14.3]} 21... Bd3 {[%clk 0:00:34.7]} 22. O-O-O {[%clk 0:00:56.7]}
22... Qd5 {[%clk 0:00:28.3]} 23. Bd6 {[%clk 0:00:49.1]} 23... Qb5 {[%clk
0:00:23.8]} 24. Bg4+ {[%clk 0:00:38.9]} 24... Nd7 {[%clk 0:00:23.1]} 25. Qb2
{[%clk 0:00:34.1]} 25... Qxb2+ {[%clk 0:00:21]} 26. Kxb2 {[%clk 0:00:33.5]}
26... b6 {[%clk 0:00:18.9]} 27. f4 {[%clk 0:00:21.6]} 27... Kb7 {[%clk
0:00:18.1]} 28. Ne2 {[%clk 0:00:19.5]} 28... Be4 {[%clk 0:00:13.8]} 29. Nc3
{[%clk 0:00:16.2]} 29... Bxg2 {[%clk 0:00:09.9]} 30. Rhg1 {[%clk 0:00:16.7]}
30... Bh3 {[%clk 0:00:09.3]} 31. Rd2 {[%clk 0:00:17.4]} 31... Bxg4 {[%clk
0:00:08.9]} 32. Rxg4 {[%clk 0:00:17.5]} 32... Nc5 {[%clk 0:00:07.5]} 33. Rd5
{[%clk 0:00:15.2]} 33... Nd3+ {[%clk 0:00:07]} 34. Kc2 {[%clk 0:00:14.1]} 34...
Na5 {[%clk 0:00:05.9]} 35. Rxd3 {[%clk 0:00:12.7]} 35... cxd3+ {[%clk
0:00:05.2]} 36. Kxd3 {[%clk 0:00:13.4]} 36... Rxh2 {[%clk 0:00:04.8]} 37. f5
{[%clk 0:00:12.7]} 37... gxf5 {[%clk 0:00:04.5]} 38. Rg7 {[%clk 0:00:12.8]}
38... Rd7 {[%clk 0:00:04.5]} 39. Nd5 {[%clk 0:00:13.1]} 39... Nc6 {[%clk
0:00:04.2]} 40. Nf6 {[%clk 0:00:12.6]} 40... Rxd6+ {[%clk 0:00:02.9]} 41. exd6
{[%clk 0:00:12.3]} 41... Rh3+ {[%clk 0:00:03]} 42. Kd2 {[%clk 0:00:11.4]} 42...
Rxa3 {[%clk 0:00:02.7]} 43. Rxf7+ {[%clk 0:00:10.4]} 43... Ka6 {[%clk
0:00:03.6]} 44. Nd5 {[%clk 0:00:09]} 44... Kb5 {[%clk 0:00:03.5]} 45. Nc3+
{[%clk 0:00:08.5]} 45... Kc4 {[%clk 0:00:03.3]} 46. Ne2 {[%clk 0:00:08.8]} 46...
Kd5 {[%clk 0:00:03.1]} 47. d7 {[%clk 0:00:08.5]} 47... Kd6 {[%clk 0:00:03.3]}
48. Nf4 {[%clk 0:00:08.1]} 48... Kc7 {[%clk 0:00:03]} 49. Nd5+ {[%clk
0:00:07.9]} 49... Kd6 {[%clk 0:00:03.1]} 50. Nf6 {[%clk 0:00:07.8]} 50... Kc7
{[%clk 0:00:02.4]} 51. Rf8 {[%clk 0:00:08]} 51... Kd6 {[%clk 0:00:01.7]} 52. Rc8
{[%clk 0:00:07.3]} 1-0

[Event "*** Titled Tuesday Blitz"]
[Site "Chess.com"]
[Date "2021.04.06"]
[Round "6"]
[White "tylityli"]
[Black "profofchess"]
[Result "1/2-1/2"]
[WhiteElo "2337"]
[BlackElo "2507"]
[TimeControl "180+1"]
[EndTime "11:09:02 PDT"]
[Termination "Game drawn by stalemate"]

1. d4 {[%clk 0:02:53.3]} 1... Nf6 {[%clk 0:02:27]} 2. c4 {[%clk 0:02:51.7]} 2...
e6 {[%clk 0:02:27.1]} 3. Nc3 {[%clk 0:02:51.1]} 3... Bb4 {[%clk 0:02:27.1]} 4.
e3 {[%clk 0:02:51.2]} 4... O-O {[%clk 0:02:26.2]} 5. Ne2 {[%clk 0:02:50.8]} 5...
Re8 {[%clk 0:02:26.1]} 6. a3 {[%clk 0:02:50.2]} 6... Bf8 {[%clk 0:02:24.7]} 7.
d5 {[%clk 0:02:47.9]} 7... e5 {[%clk 0:02:06.7]} 8. e4 {[%clk 0:02:47.4]} 8...
a5 {[%clk 0:02:02.2]} 9. Ng3 {[%clk 0:02:45.3]} 9... g6 {[%clk 0:02:01.7]} 10.
Be2 {[%clk 0:02:43.5]} 10... Na6 {[%clk 0:01:58.1]} 11. O-O {[%clk 0:02:39.9]}
11... Nc5 {[%clk 0:01:54]} 12. Be3 {[%clk 0:02:39]} 12... a4 {[%clk 0:01:35.1]}
13. Bxc5 {[%clk 0:02:36.5]} 13... Bxc5 {[%clk 0:01:34.5]} 14. Nxa4 {[%clk
0:02:36.6]} 14... Bd4 {[%clk 0:01:34.8]} 15. Nc3 {[%clk 0:02:32.6]} 15... Bxc3
{[%clk 0:01:28.3]} 16. bxc3 {[%clk 0:02:31.5]} 16... d6 {[%clk 0:01:27.9]} 17.
f4 {[%clk 0:02:15]} 17... exf4 {[%clk 0:01:27.6]} 18. Rxf4 {[%clk 0:02:14.6]}
18... Nd7 {[%clk 0:01:28.5]} 19. Bg4 {[%clk 0:02:10]} 19... Ne5 {[%clk
0:01:28.1]} 20. Bxc8 {[%clk 0:02:08.2]} 20... Qxc8 {[%clk 0:01:27.7]} 21. c5
{[%clk 0:02:06]} 21... dxc5 {[%clk 0:01:20.5]} 22. h4 {[%clk 0:01:49]} 22... Qd8
{[%clk 0:01:15.6]} 23. Qf1 {[%clk 0:01:27.5]} 23... c4 {[%clk 0:00:54.3]} 24.
Rf6 {[%clk 0:01:06.8]} 24... Ra6 {[%clk 0:00:42.7]} 25. Rxa6 {[%clk 0:01:04.3]}
25... bxa6 {[%clk 0:00:43.6]} 26. Qf4 {[%clk 0:01:01.7]} 26... Nd3 {[%clk
0:00:37.6]} 27. Qg4 {[%clk 0:00:51.9]} 27... Qc8 {[%clk 0:00:25.3]} 28. Qxc8
{[%clk 0:00:45.8]} 28... Rxc8 {[%clk 0:00:25.1]} 29. Rb1 {[%clk 0:00:45.5]}
29... c6 {[%clk 0:00:19.5]} 30. Rb6 {[%clk 0:00:41.8]} 30... cxd5 {[%clk
0:00:19.4]} 31. exd5 {[%clk 0:00:41.5]} 31... Rd8 {[%clk 0:00:19.2]} 32. d6
{[%clk 0:00:41.6]} 32... a5 {[%clk 0:00:17.3]} 33. Ne4 {[%clk 0:00:40.1]} 33...
Kg7 {[%clk 0:00:17.4]} 34. Rc6 {[%clk 0:00:34.8]} 34... Ne5 {[%clk 0:00:16.7]}
35. Rc5 {[%clk 0:00:31.1]} 35... f6 {[%clk 0:00:16]} 36. Rc7+ {[%clk 0:00:30.3]}
36... Nf7 {[%clk 0:00:16]} 37. d7 {[%clk 0:00:29]} 37... Ne5 {[%clk 0:00:12.4]}
38. Nc5 {[%clk 0:00:26.1]} 38... Kf7 {[%clk 0:00:12.7]} 39. Ra7 {[%clk
0:00:25.7]} 39... Ke7 {[%clk 0:00:11.3]} 40. Rxa5 {[%clk 0:00:24.9]} 40... Nxd7
{[%clk 0:00:09.5]} 41. Ra7 {[%clk 0:00:24.5]} 41... Ke8 {[%clk 0:00:09.4]} 42.
Nxd7 {[%clk 0:00:23.8]} 42... Rxd7 {[%clk 0:00:09.4]} 43. Rxd7 {[%clk
0:00:23.8]} 43... Kxd7 {[%clk 0:00:10.3]} 44. Kf2 {[%clk 0:00:23.8]} 44... Kc6
{[%clk 0:00:09.9]} 45. Ke3 {[%clk 0:00:23.8]} 45... Kb5 {[%clk 0:00:07.8]} 46.
Kd4 {[%clk 0:00:23.5]} 46... h5 {[%clk 0:00:06.3]} 47. a4+ {[%clk 0:00:22.8]}
47... Kxa4 {[%clk 0:00:06.1]} 48. Kxc4 {[%clk 0:00:22.6]} 48... g5 {[%clk
0:00:06.5]} 49. Kd5 {[%clk 0:00:19.8]} 49... g4 {[%clk 0:00:01.8]} 50. c4 {[%clk
0:00:18.4]} 50... f5 {[%clk 0:00:02.3]} 51. c5 {[%clk 0:00:17]} 51... f4 {[%clk
0:00:02.7]} 52. Ke4 {[%clk 0:00:15.1]} 52... f3 {[%clk 0:00:02.7]} 53. gxf3
{[%clk 0:00:13.5]} 53... gxf3 {[%clk 0:00:03.6]} 54. Kxf3 {[%clk 0:00:13.1]}
54... Kb5 {[%clk 0:00:03.9]} 55. Kf4 {[%clk 0:00:13.5]} 55... Kxc5 {[%clk
0:00:04.5]} 56. Kg5 {[%clk 0:00:14.4]} 56... Kd6 {[%clk 0:00:05.2]} 57. Kxh5
{[%clk 0:00:14.7]} 57... Ke7 {[%clk 0:00:06.1]} 58. Kg6 {[%clk 0:00:15.1]} 58...
Kf8 {[%clk 0:00:06.9]} 59. h5 {[%clk 0:00:15.2]} 59... Kg8 {[%clk 0:00:07.2]}
60. h6 {[%clk 0:00:15.5]} 60... Kh8 {[%clk 0:00:07.8]} 61. h7 {[%clk 0:00:15.8]}
1/2-1/2